bitfinex/quotes_SOLUSD_20250522
["timestamp","ask_amount","ask_price","bid_price","bid_amount"]
[1747934452951,35.01098136,178.99,178.93,26.0]
[1747934453552,15.45681633,178.97,178.92,26.0]
[1747934453769,15.45681633,178.96,178.92,26.0]
[1747934454069,15.45681633,178.97,178.92,26.0]
[1747934454470,7.67421856,178.98,178.93,0.14216157]
[1747934454645,5.58701627,178.99,178.93,0.14216157]
[1747934454845,5.58701627,178.99,178.93,5.73088812]
[1747934455043,1.6635,179.0,178.97,26.0]
[1747934455247,7.25019941,179.0,178.97,26.0]
[1747934455989,5.58534405,179.04,178.97,26.0]
[1747934456162,21.04216038,179.04,178.98,26.0]
[1747934456472,35.00552052,179.04,178.98,26.0]
[1747934456646,2.08482096,179.03,178.98,26.0]
[1747934458650,35.00552052,179.04,178.98,26.0]
[1747934459079,15.45681633,179.03,178.98,26.0]
[1747934460378,35.00552052,179.04,178.98,26.0]
[1747934464073,15.45681633,179.03,178.98,26.0]
[1747934464784,5.58596804,179.02,178.98,26.0]
[1747934465558,35.00770449,179.02,178.98,26.0]
[1747934466871,19.55088816,179.02,178.98,26.0]
[1747934467580,5.58596804,179.02,178.98,26.0]
[1747934467880,5.58596804,179.02,178.99,26.14216157]
[1747934468069,5.58534405,179.04,178.99,26.14216157]
[1747934468274,5.58534405,179.04,178.99,59.64216157]
[1747934469082,29.41741561,179.08,178.99,59.64216157]
[1747934469083,5.58440833,179.07,178.99,59.64216157]
[1747934470581,5.58440833,179.07,178.99,147.52904582]
[1747934470954,5.58440833,179.07,178.99,141.94216157]
[1747934471475,5.58440833,179.07,178.99,147.52895983]
[1747934472774,19.54469577,179.08,178.99,147.52895983]
[1747934477594,5.58409649,179.08,179.01,0.14216157]
[1747934477778,5.58409649,179.08,179.02,37.02]
[1747934478564,0.60037295,179.11,179.02,37.02]
[1747934478764,5.58316118,179.11,179.03,6.1704]
[1747934479009,0.14216157,179.16,179.03,6.1704]
[1747934479010,13.95357721,179.17,179.07,26.0]
[1747934479163,5.58098002,179.18,179.08,50.86178869]
[1747934479505,5.58098002,179.18,179.1,5.58347292]
[1747934479662,5.58098002,179.18,179.1,13.05656161]
[1747934479861,1.5415,179.19,179.11,14.75924679]
[1747934480089,5.58050482,179.2,179.12,0.14216157]
[1747934480691,5.57993796,179.22,179.12,0.14216157]
[1747934480867,5.57993796,179.22,179.12,0.28432314]
[1747934481190,5.56910764,179.23,179.12,0.28432314]
[1747934481191,5.56910764,179.23,179.12,7.75741183]
[1747934481377,3.95140764,179.23,179.16,0.14216157]
[1747934481584,5.57883152,179.25,179.18,0.14216157]
[1747934484385,5.57848934,179.26,179.18,0.14216157]
[1747934484701,19.5247127,179.26,179.18,0.14216157]
[1747934485189,15.45681633,179.25,179.18,70.48]
[1747934485383,15.45681633,179.23,179.18,70.48]
[1747934485982,20.12508565,179.26,179.18,70.48]
[1747934486302,15.45681633,179.24,179.18,70.48]
[1747934486493,5.57942308,179.23,179.18,70.48]
[1747934487177,19.52798079,179.23,179.18,70.48]
[1747934490294,34.98479712,179.23,179.18,70.48]
[1747934490676,19.52798079,179.23,179.18,70.48]
[1747934497389,19.52798079,179.23,179.13,89.77308869]
[1747934497390,15.45681633,179.21,179.13,89.77308869]
[1747934497594,15.45681633,179.19,179.13,120.7]
[1747934497784,15.45681633,179.2,179.13,38.4]
[1747934498304,15.45681633,179.19,179.13,38.4]
[1747934499222,5.58098002,179.18,179.13,38.4]
[1747934503917,1.5043,179.19,179.14,26.14216157]
[1747934504119,5.58073072,179.19,179.14,26.14216157]
[1747934504991,5.58004575,179.21,179.14,26.14216157]
[1747934507519,21.03686208,179.21,179.14,26.14216157]
[1747934507825,5.58004575,179.21,179.14,26.14216157]
[1747934508703,34.98697647,179.21,179.14,26.14216157]
[1747934509818,34.98697647,179.21,179.14,26.0]
[1747934510004,19.53016014,179.21,179.14,26.0]
[1747934510610,19.53016014,179.21,179.16,26.0]
[1747934512431,5.58004575,179.21,179.16,26.0]
[1747934513747,5.5797344,179.22,179.16,26.0]
[1747934516131,34.98588674,179.22,179.16,26.0]
[1747934516338,19.52907041,179.22,179.16,26.0]
[1747934516543,34.98588674,179.22,179.16,26.0]
[1747934517232,5.57880055,179.25,179.17,26.0]
[1747934517405,5.57880055,179.25,179.17,59.46]
[1747934517612,5.57880055,179.25,179.17,66.93308869]
[1747934518130,5.57848934,179.26,179.17,72.51433474]
[1747934519422,5.57817816,179.27,179.21,26.0]
[1747934519611,5.57817816,179.27,179.25,26.0]
[1747934519923,7.14384846,179.28,179.25,26.0]
[1747934521416,22.60066479,179.28,179.25,26.0]
[1747934521710,15.45681633,179.27,179.25,26.0]
[1747934522312,15.45681633,179.26,179.25,26.0]
[1747934522511,15.45681633,179.26,179.23,26.0]
[1747934522746,15.45681633,179.24,179.23,26.0]
[1747934523056,15.45681633,179.25,179.22,64.4]
[1747934523351,5.57942308,179.23,179.22,64.4]
[1747934523550,5.57942308,179.23,179.22,26.0]
[1747934525625,5.57942308,179.23,179.19,64.4]
[1747934526044,5.57942308,179.23,179.19,26.0]
[1747934526345,5.57942308,179.23,179.19,64.4]
[1747934527445,5.57817816,179.27,179.19,64.4]
[1747934527630,5.57817816,179.27,179.19,77.4537339]
[1747934528143,21.03499449,179.27,179.22,26.0]
[1747934528339,5.57817816,179.27,179.23,26.0]
[1747934528651,5.57817816,179.27,179.24,26.0]
[1747934529155,13.94211319,179.32,179.24,26.0]
[1747934529326,15.45681633,179.31,179.24,26.0]
[1747934529534,15.45681633,179.31,179.25,38.4]
[1747934529829,2.08260517,179.3,179.25,38.4]
[1747934530245,7.65989376,179.3,179.25,38.4]
[1747934530638,5.57728859,179.3,179.25,38.4]
[1747934531561,5.57702139,179.31,179.28,26.0]
[1747934532231,21.03343912,179.32,179.28,26.0]
[1747934532628,34.97499611,179.32,179.28,26.0]
[1747934533252,21.03343912,179.32,179.29,0.5]
[1747934533922,5.57662279,179.32,179.29,0.5]
[1747934534129,21.03343912,179.32,179.29,0.5]
[1747934534426,5.57662279,179.32,179.29,0.5]
[1747934534627,21.03343912,179.32,179.29,0.5]
[1747934535854,5.57662279,179.32,179.29,0.5]
[1747934537343,5.57568999,179.35,179.29,0.5]
[1747934537538,5.57568999,179.35,179.31,26.0]
[1747934537741,5.57568999,179.35,179.31,64.4]
[1747934538466,19.51392882,179.36,179.31,64.4]
[1747934539154,5.57537912,179.36,179.32,0.14216157]
[1747934539546,5.57537912,179.36,179.33,33.44]
[1747934539773,5.57475749,179.38,179.33,33.44]
[1747934540659,19.51165123,179.38,179.32,82.27507466]
[1747934540869,34.96846756,179.38,179.28,0.14216157]
[1747934541037,34.96846756,179.38,179.29,38.4]
[1747934541038,15.45681633,179.35,179.29,38.4]
[1747934541466,15.45681633,179.34,179.29,38.4]
[1747934541654,15.45681633,179.34,179.29,64.4]
[1747934541856,19.51165123,179.38,179.29,64.4]
[1747934541857,15.45681633,179.33,179.29,64.4]
[1747934542373,5.57662279,179.32,179.29,64.4]
[1747934544532,19.51273902,179.37,179.29,64.4]
[1747934544758,15.45681633,179.35,179.29,64.4]
[1747934546158,19.51600312,179.34,179.29,64.4]
[1747934547060,34.97281945,179.34,179.29,64.4]
[1747934547467,19.51600312,179.34,179.29,64.4]
[1747934548532,15.45681633,179.33,179.29,64.4]
[1747934548837,15.45681633,179.32,179.29,38.4]
[1747934549632,19.51600312,179.34,179.26,208.62]
[1747934549633,15.45681633,179.31,179.26,208.62]
[1747934550658,15.45681633,179.3,179.26,208.62]
[1747934551235,47.40129376,179.32,179.25,38.38]
[1747934551437,15.45681633,179.28,179.25,38.38]
[1747934552641,21.03530567,179.26,179.25,38.38]
[1747934552842,5.57848934,179.26,179.25,38.38]
[1747934553082,21.03530567,179.26,179.25,38.38]
[1747934553445,5.57848934,179.26,179.25,38.38]
[1747934553662,21.03530567,179.26,179.25,38.38]
[1747934554149,5.57848934,179.26,179.25,38.38]
[1747934554378,22.55910567,179.26,179.25,38.38]
[1747934556248,7.10228934,179.26,179.25,38.38]
[1747934556451,22.55910567,179.26,179.25,38.38]
[1747934558267,7.10228934,179.26,179.25,38.38]
[1747934558965,5.57786702,179.28,179.25,38.38]
[1747934559459,21.03343912,179.32,179.25,38.38]
[1747934559845,5.57662279,179.32,179.25,38.38]
[1747934560051,5.57662279,179.32,179.28,26.0]
[1747934560861,15.45681633,179.31,179.28,26.0]
[1747934562080,5.57724484,179.3,179.28,26.0]
[1747934562781,5.57724484,179.3,179.26,26.0]
[1747934562987,5.57724484,179.3,179.29,0.5]
[1747934563157,5.57724484,179.3,179.26,26.0]
[1747934563367,34.97717327,179.3,179.26,26.0]
[1747934564063,34.90437303,179.3,179.25,53.76401609]
[1747934564258,34.90437303,179.3,179.25,38.38]
[1747934564484,15.38401609,179.29,179.25,38.38]
[1747934565973,5.57786702,179.28,179.25,38.38]
[1747934567385,5.57786702,179.28,179.25,53.76401609]
[1747934568090,19.52144569,179.29,179.25,38.38]
[1747934568985,19.52144569,179.29,179.25,53.76401609]
[1747934569189,34.90546178,179.29,179.25,38.38]
[1747934569567,19.52144569,179.29,179.25,38.38]
[1747934571196,19.52144569,179.29,179.25,53.76401609]
[1747934572182,19.52144569,179.29,179.25,38.38]
[1747934572183,34.90546178,179.29,179.25,38.38]
[1747934573898,19.52144569,179.29,179.26,15.38401609]
[1747934574273,19.52144569,179.29,179.25,38.38]
[1747934574490,19.52144569,179.29,179.25,53.76401609]
[1747934574884,19.52144569,179.29,179.25,38.38]
[1747934575090,34.90546178,179.29,179.25,38.38]
[1747934576100,19.52144569,179.29,179.25,53.76401609]
[1747934577296,19.52144569,179.29,179.25,38.38]
[1747934577505,34.90546178,179.29,179.25,38.38]
[1747934578195,19.52144569,179.29,179.25,38.38]
[1747934578507,19.52144569,179.29,179.25,53.76401609]
[1747934578878,19.52144569,179.29,179.25,38.38]
[1747934580792,19.52144569,179.29,179.25,53.76401609]
[1747934581977,19.52144569,179.29,179.25,38.38]
[1747934582300,19.52144569,179.29,179.25,53.76401609]
[1747934583387,5.57755591,179.29,179.26,15.38401609]
[1747934583790,5.57755591,179.29,179.28,15.38401609]
[1747934584088,19.51867479,179.32,179.28,15.38401609]
[1747934584489,19.51867479,179.32,179.29,15.38401609]
[1747934584688,5.57662279,179.32,179.29,15.38401609]
[1747934585006,5.57662279,179.32,179.3,15.38401609]
[1747934585407,5.57662279,179.32,179.31,15.38401609]
[1747934586104,13.93977304,179.35,179.31,15.38401609]
[1747934586484,5.57537912,179.36,179.34,15.38401609]
[1747934586707,5.57537912,179.36,179.35,15.38401609]
[1747934587017,5.57537912,179.36,179.34,15.38401609]
[1747934588187,19.51088488,179.39,179.34,15.38401609]
[1747934588887,15.38401609,179.38,179.32,15.38401609]
[1747934589087,17.46372061,179.38,179.33,15.38401609]
[1747934589303,2.07970452,179.38,179.33,15.38401609]
[1747934590011,19.51088488,179.39,179.33,15.38401609]
[1747934590210,34.89490097,179.39,179.34,15.38401609]
[1747934590516,19.51088488,179.39,179.34,15.38401609]
[1747934590828,19.51088488,179.39,179.35,15.38401609]
[1747934591405,13.93643815,179.39,179.35,15.38401609]
[1747934592013,13.93643815,179.39,179.36,15.38401609]
[1747934592314,13.93643815,179.39,179.36,15.88401609]
[1747934592692,13.93643815,179.39,179.36,15.38401609]
[1747934594113,5.574136,179.4,179.38,15.38401609]
[1747934594414,5.574136,179.4,179.39,15.38401609]
[1747934595181,5.57289344,179.44,179.37,37.82]
[1747934595598,5.57289344,179.44,179.39,15.38401609]
[1747934595800,19.50512705,179.44,179.4,15.38401609]
[1747934596817,19.50512705,179.44,179.37,37.82]
[1747934596999,19.50512705,179.44,179.4,15.38401609]
[1747934597200,19.50512705,179.44,179.41,0.5]
[1747934598913,19.50512705,179.44,179.4,15.38401609]
[1747934599690,19.50512705,179.44,179.37,37.82]
[1747934599889,19.50512705,179.44,179.39,15.38401609]
[1747934601412,19.50512705,179.44,179.4,15.38401609]
[1747934602515,5.57289344,179.44,179.41,15.38401609]
[1747934602693,5.57289344,179.44,179.41,15.88401609]
[1747934603112,5.57289344,179.44,179.41,15.38401609]
[1747934603516,5.57289344,179.44,179.42,15.38401609]
[1747934603716,5.57289344,179.44,179.43,15.38401609]
[1747934604532,19.5021405,179.47,179.43,15.38401609]
[1747934604991,19.5021405,179.47,179.38,38.9947525]
[1747934604992,5.57196188,179.47,179.45,15.38401609]
[1747934605191,5.57196188,179.47,179.46,15.38401609]
[1747934605818,5.57169684,179.48,179.46,15.38401609]
[1747934606204,15.38401609,179.52,179.43,37.8]
[1747934606205,5.57040998,179.52,179.47,15.38401609]
[1747934606394,5.57040998,179.52,179.49,15.38401609]
[1747934608405,5.57040998,179.52,179.5,15.38401609]
[1747934609019,5.57040998,179.52,179.51,15.38401609]
[1747934609527,5.57040998,179.52,179.49,53.18401609]
[1747934609713,5.57040998,179.52,179.49,37.8]
[1747934610026,5.57040998,179.52,179.5,15.38401609]
[1747934610213,5.57040998,179.52,179.44,37.8]
[1747934610214,34.88045102,179.52,179.44,37.8]
[1747934610420,34.88045102,179.52,179.46,15.38401609]
[1747934610615,19.49643493,179.52,179.44,37.8]
[1747934610795,34.88045102,179.52,179.47,15.38401609]
[1747934610995,34.88045102,179.52,179.46,15.38401609]
[1747934611200,19.49643493,179.52,179.45,15.38401609]
[1747934611421,34.88045102,179.52,179.46,15.38401609]
[1747934612010,15.38401609,179.51,179.46,15.38401609]
[1747934612215,15.38401609,179.51,179.45,15.38401609]
[1747934612514,34.88045102,179.52,179.46,15.38401609]
[1747934612926,19.49643493,179.52,179.46,15.38401609]
[1747934613119,34.88045102,179.52,179.46,15.38401609]
[1747934613912,34.88045102,179.52,179.47,15.38401609]
[1747934615233,19.49643493,179.52,179.47,15.38401609]
[1747934615403,34.88045102,179.52,179.47,15.38401609]
[1747934615735,19.49643493,179.52,179.47,15.38401609]
[1747934615924,34.88045102,179.52,179.47,15.38401609]
[1747934616532,19.49643493,179.52,179.47,15.38401609]
[1747934620427,19.49643493,179.52,179.44,37.8]
[1747934620628,19.49643493,179.52,179.47,15.38401609]
[1747934620820,5.57040998,179.52,179.49,15.38401609]
[1747934621007,5.57040998,179.52,179.48,15.38401609]
[1747934622328,5.57040998,179.52,179.49,15.38401609]
[1747934623019,5.57040998,179.52,179.48,15.38401609]
[1747934623910,5.57040998,179.52,179.49,15.38401609]
[1747934624113,5.57040998,179.52,179.48,15.38401609]
[1747934624346,5.57040998,179.52,179.49,15.38401609]
[1747934625219,15.38401609,179.5,179.44,63.8]
[1747934625539,19.49643493,179.52,179.44,79.18401609]
[1747934625751,5.57134102,179.49,179.45,15.38401609]
[1747934626127,34.88370966,179.49,179.44,37.8]
[1747934626548,19.49969357,179.49,179.45,15.38401609]
[1747934626859,19.49969357,179.49,179.44,37.8]
[1747934627133,34.88370966,179.49,179.45,0.5]
[1747934627943,16.92131609,179.47,179.45,0.5]
[1747934628155,15.38401609,179.46,179.41,15.38401609]
[1747934628655,15.38401609,179.45,179.4,37.58]
[1747934628819,15.38401609,179.45,179.4,52.96401609]
[1747934629019,1.5373,179.47,179.4,52.96401609]
[1747934629217,1.5373,179.47,179.42,15.38401609]
[1747934629716,5.57227237,179.46,179.41,15.38401609]
[1747934629944,34.88696939,179.46,179.41,15.38401609]
[1747934631430,19.5029533,179.46,179.41,15.38401609]
[1747934632953,34.88696939,179.46,179.42,0.5]
[1747934633327,15.38401609,179.45,179.42,0.5]
[1747934633647,15.38401609,179.45,179.4,37.58]
[1747934635128,19.50512705,179.44,179.4,37.58]
[1747934635321,34.88914314,179.44,179.4,37.58]
[1747934635943,15.38401609,179.41,179.35,37.58]
[1747934636149,19.50512705,179.44,179.35,37.58]
[1747934636150,15.38401609,179.43,179.37,15.38401609]
[1747934637255,19.50730129,179.42,179.37,15.38401609]
[1747934638356,19.50730129,179.42,179.38,0.5]
[1747934638863,34.89131738,179.42,179.38,0.5]
[1747934639658,19.50730129,179.42,179.38,0.5]
[1747934640240,34.89131738,179.42,179.38,0.5]
[1747934640458,15.38401609,179.39,179.38,0.5]
[1747934640664,15.38401609,179.39,179.32,33.4]
[1747934640665,15.38401609,179.39,179.32,41.38401609]
[1747934640835,15.38401609,179.38,179.33,26.0]
[1747934641274,15.38401609,179.38,179.32,15.38401609]
[1747934641558,15.38401609,179.38,179.33,15.38401609]
[1747934641559,5.57506829,179.37,179.33,15.38401609]
[1747934641767,5.57506829,179.37,179.34,15.38401609]
[1747934642865,5.57506829,179.37,179.33,15.38401609]
[1747934644556,19.51273902,179.37,179.33,15.38401609]
[1747934645367,5.57506829,179.37,179.33,15.38401609]
[1747934645547,5.57506829,179.37,179.34,15.38401609]
[1747934646171,5.57506829,179.37,179.33,26.0]
[1747934646337,5.57506829,179.37,179.34,15.38401609]
[1747934647552,5.57475749,179.38,179.34,15.38401609]
[1747934648548,19.51056357,179.39,179.34,15.38401609]
[1747934651248,19.51056357,179.39,179.35,15.38401609]
[1747934651453,5.57444673,179.39,179.36,15.38401609]
[1747934653483,5.574136,179.4,179.33,26.0]
[1747934653665,5.574136,179.4,179.36,15.38401609]
[1747934653864,5.574136,179.4,179.37,15.38401609]
[1747934654170,5.574136,179.4,179.39,15.38401609]
[1747934655053,30.83172816,179.45,179.39,15.38401609]
[1747934655257,19.50512705,179.44,179.4,15.38401609]
[1747934656280,19.50512705,179.44,179.39,15.38401609]
[1747934656678,34.88914314,179.44,179.39,15.38401609]
[1747934657367,19.50512705,179.44,179.41,15.38401609]
[1747934657881,19.50512705,179.44,179.37,26.0]
[1747934657882,5.57289344,179.44,179.42,15.38401609]
[1747934658457,5.57289344,179.44,179.43,15.38401609]
[1747934659488,13.93044098,179.47,179.43,15.38401609]
[1747934659986,13.93044098,179.47,179.42,37.42]
[1747934660461,13.93044098,179.47,179.43,15.38401609]
[1747934661587,15.38401609,179.45,179.42,37.42]
[1747934661880,15.38401609,179.44,179.42,37.42]
[1747934662378,15.38401609,179.45,179.42,37.42]
[1747934663588,5.57289344,179.44,179.42,37.42]
[1747934664389,5.57165143,179.48,179.43,15.38401609]
[1747934664683,20.95566752,179.48,179.43,15.38401609]
[1747934665071,5.57165143,179.48,179.43,15.38401609]
[1747934665267,19.50078002,179.48,179.43,15.38401609]
[1747934665476,19.50078002,179.48,179.44,15.38401609]
[1747934665662,19.50078002,179.48,179.43,15.38401609]
[1747934666413,5.57165143,179.48,179.44,15.38401609]
[1747934666586,5.57165143,179.48,179.42,37.42]
[1747934666758,5.57165143,179.48,179.44,15.38401609]
[1747934667487,5.57165143,179.48,179.42,37.42]
[1747934668766,5.57165143,179.48,179.43,33.4]
[1747934669198,5.57072029,179.51,179.44,26.0]
[1747934669383,5.57072029,179.51,179.44,33.47308869]
[1747934670393,20.92230946,179.54,179.44,39.04590841]
[1747934671393,5.56978946,179.54,179.44,13.04590841]
[1747934671586,19.49426311,179.54,179.44,7.47308869]
[1747934671780,34.84678311,179.54,179.44,7.47308869]
[1747934671976,19.49426311,179.54,179.44,13.04592027]
[1747934673187,19.49426311,179.54,179.45,5.714538]
[1747934673490,19.49426311,179.54,179.45,13.18762669]
[1747934673935,5.56978946,179.54,179.45,13.18762669]
[1747934674198,5.56978946,179.54,179.46,7.47308869]
[1747934674374,5.56953391,179.55,179.47,0.14216157]
[1747934674566,7.14150876,179.62,179.49,6.60326157]
[1747934674772,5.56606924,179.66,179.54,26.0]
[1747934675006,5.56606924,179.66,179.58,26.0]
[1747934675174,5.56606924,179.66,179.58,31.56847684]
[1747934675376,5.56606924,179.66,179.58,33.47308869]
[1747934675573,5.56606924,179.66,179.59,0.14216157]
[1747934675774,24.06210728,179.7,179.59,7.61525026]
[1747934676212,8.70958728,179.7,179.59,7.47308869]
[1747934676374,8.70958728,179.7,179.57,6.29016157]
[1747934676375,15.35252,179.6,179.53,37.16]
[1747934676582,15.35252,179.57,179.53,37.16]
[1747934676880,16.98612,179.58,179.53,37.16]
[1747934677081,15.35252,179.57,179.53,37.16]
[1747934677303,1.6336,179.58,179.53,37.16]
[1747934677604,16.98612,179.58,179.53,37.16]
[1747934677804,15.35252,179.57,179.53,37.16]
[1747934677999,16.98612,179.58,179.53,37.16]
[1747934678300,1.6336,179.58,179.53,37.16]
[1747934678677,16.98612,179.58,179.53,37.16]
[1747934679091,15.35252,179.55,179.5,26.0]
[1747934679302,15.35252,179.56,179.48,37.16]
[1747934679502,1.6336,179.58,179.48,63.16]
[1747934679685,15.35252,179.55,179.48,63.16]
[1747934679883,15.35252,179.55,179.48,37.16]
[1747934680614,15.35252,179.56,179.48,37.16]
[1747934680787,8.24837295,179.58,179.48,37.16]
[1747934680985,15.35252,179.55,179.48,37.16]
[1747934681197,8.24837295,179.58,179.48,37.16]
[1747934681398,15.35252,179.54,179.48,37.16]
[1747934681896,15.35252,179.53,179.48,37.16]
[1747934683085,5.5700997,179.53,179.48,37.16]
[1747934683286,20.9226197,179.53,179.48,37.16]
[1747934684083,5.5700997,179.53,179.48,37.16]
[1747934684916,20.92137894,179.57,179.51,26.0]
[1747934685102,5.56885894,179.57,179.55,26.0]
[1747934687223,5.56854883,179.58,179.55,26.0]
[1747934688219,20.91951883,179.63,179.57,26.0]
[1747934688428,5.56699883,179.63,179.57,26.0]
[1747934689735,5.56699883,179.63,179.57,59.38]
[1747934690410,20.91951883,179.63,179.57,59.38]
[1747934690739,5.56699883,179.63,179.57,59.38]
[1747934693133,5.56668893,179.64,179.57,59.38]
[1747934694126,5.56668893,179.64,179.57,64.94876136]
[1747934694944,7.07365855,179.66,179.58,0.14216157]
[1747934696047,22.42617855,179.66,179.58,5.71062103]
[1747934696242,22.42617855,179.66,179.58,0.14216157]
[1747934696637,7.07365855,179.66,179.58,4.40512941]
[1747934696850,7.07365855,179.66,179.57,59.38]
[1747934697353,7.07365855,179.66,179.58,0.14216157]
[1747934697951,5.56513996,179.69,179.62,26.0]
[1747934698163,5.56513996,179.69,179.63,37.14]
[1747934698536,5.5639014,179.73,179.66,26.0]
[1747934698965,34.82617491,179.73,179.66,26.0]
[1747934699343,15.35252,179.71,179.66,26.0]
[1747934699670,15.35252,179.7,179.66,26.0]
[1747934699855,15.35252,179.7,179.63,70.52]
[1747934700041,5.56513996,179.69,179.64,26.0]
[1747934700442,15.35252,179.66,179.63,37.14]
[1747934701348,15.35252,179.65,179.63,37.14]
[1747934701645,15.35252,179.65,179.61,26.0]
[1747934701845,1.622,179.68,179.62,26.0]
[1747934702062,5.56575944,179.67,179.62,26.0]
[1747934703156,5.56575944,179.67,179.6,5.56792873]
[1747934703340,5.56575944,179.67,179.63,26.0]
[1747934704041,5.56575944,179.67,179.62,26.0]
[1747934705072,5.56575944,179.67,179.63,26.0]
[1747934705740,15.35252,179.66,179.62,26.0]
[1747934705947,5.56637907,179.65,179.62,26.0]
[1747934706146,5.56637907,179.65,179.59,33.38]
[1747934706347,5.56637907,179.65,179.62,26.0]
[1747934706547,5.56637907,179.65,179.59,33.38]
[1747934706763,5.56637907,179.65,179.62,26.0]
[1747934707570,19.47658773,179.71,179.62,26.0]
[1747934707875,15.35252,179.69,179.62,26.0]
[1747934708049,15.35252,179.67,179.62,26.0]
[1747934708236,15.35252,179.66,179.62,26.0]
[1747934708440,15.35252,179.66,179.63,0.5]
[1747934708871,15.35252,179.64,179.59,33.38]
[1747934709462,15.35252,179.64,179.59,59.38]
[1747934709962,5.56699883,179.63,179.59,26.0]
[1747934711167,5.56653915,179.65,179.59,26.0]
[1747934711349,15.35252,179.63,179.59,26.0]
[1747934711554,15.35252,179.61,179.58,37.14]
[1747934711751,15.35252,179.62,179.58,37.14]
[1747934711954,5.56792873,179.6,179.53,37.72]
[1747934712355,5.56792873,179.6,179.56,26.0]
[1747934713359,5.56792873,179.6,179.57,0.5]
[1747934714073,5.56792873,179.6,179.54,26.0]
[1747934715063,15.35252,179.59,179.54,26.0]
[1747934715267,16.94412,179.59,179.54,26.0]
[1747934715483,16.94412,179.59,179.53,37.72]
[1747934715484,15.35252,179.58,179.53,37.72]
[1747934715645,1.5916,179.59,179.53,37.72]
[1747934716054,5.56854883,179.58,179.53,37.72]
[1747934716776,15.35252,179.57,179.53,37.72]
[1747934717548,34.84244092,179.58,179.53,37.72]
[1747934717870,5.56854883,179.58,179.53,37.72]
[1747934719082,1.5916,179.59,179.53,37.72]
[1747934719381,1.5916,179.59,179.56,26.0]
[1747934719753,7.15992036,179.59,179.56,26.0]
[1747934721250,7.15992036,179.59,179.54,26.0]
[1747934723251,7.15992036,179.59,179.55,0.5]
[1747934723465,1.5916,179.59,179.55,0.5]
[1747934723664,1.5916,179.59,179.56,26.0]
[1747934723979,1.5916,179.59,179.57,26.0]
[1747934724379,5.56730876,179.62,179.57,26.0]
[1747934726279,5.56699883,179.63,179.57,26.0]
[1747934726783,15.35252,179.62,179.57,26.0]
[1747934726955,19.4844959,179.63,179.57,26.0]
[1747934727152,34.8370159,179.63,179.55,0.5]
[1747934728904,15.35252,179.6,179.55,0.5]
[1747934729183,1.614,179.57,179.55,0.5]
[1747934729355,1.614,179.57,179.53,37.72]
[1747934730591,5.56916907,179.56,179.53,37.72]
[1747934730890,5.56916907,179.56,179.51,26.0]
[1747934731267,19.49209176,179.56,179.48,37.74]
[1747934731470,19.49209176,179.56,179.51,26.0]
[1747934733393,34.84461176,179.56,179.48,37.74]
[1747934733594,34.84461176,179.56,179.48,63.74]
[1747934733891,15.35252,179.55,179.48,63.74]
[1747934734075,19.49209176,179.56,179.48,63.74]
[1747934734076,15.35252,179.52,179.48,63.74]
[1747934734287,1.636,179.5,179.42,45.80611949]
[1747934734466,15.35252,179.49,179.42,37.94]
[1747934734976,19.50186659,179.47,179.43,26.0]
[1747934735386,34.85438659,179.47,179.43,26.0]
[1747934735588,15.35252,179.46,179.42,37.94]
[1747934735894,19.50186659,179.47,179.39,7.86611949]
[1747934735895,15.35252,179.44,179.39,7.86611949]
[1747934736277,15.35252,179.42,179.39,7.86611949]
[1747934736598,20.10223954,179.47,179.39,7.86611949]
[1747934736795,15.35252,179.44,179.39,7.86611949]
[1747934737011,5.574136,179.4,179.37,37.94]
[1747934737494,5.574136,179.4,179.37,63.94]
[1747934738299,5.57289344,179.44,179.37,63.94]
[1747934738495,20.92541344,179.44,179.37,63.94]
[1747934739001,34.85764705,179.44,179.37,63.94]
[1747934739295,15.35252,179.43,179.37,63.94]
[1747934739794,19.50512705,179.44,179.37,63.94]
[1747934739982,34.85764705,179.44,179.37,63.94]
[1747934740170,15.35252,179.42,179.37,63.94]